[Event "Titled Tuesday Blitz May 11 2021"]
[White "Keymer, Vincent"]
[Black "Annaberdiyev, Babageldi"]
[WhiteFideId "12940690"]
[BlackFideId "14000385"]
[WhiteElo "2474"]
[BlackElo "2332"]
[Result "1-0"]
[Round "03"]
[TimeControl "180+1"]
[Date "2021.05.11"]
[WhiteClock "0:00:07"]
[BlackClock "0:00:20"]

1. Nf3 {[%clk 0:03:00]}  c5 {[%clk 0:02:57]} 2. c4 {[%clk 0:03:01]}  Nc6 {[%clk 0:02:57]} 3. Nc3 {[%clk 0:03:02]}  g6 {[%clk 0:02:54]} 4. e3 {[%clk 0:03:02]}  Nf6 {[%clk 0:02:49]} 5. d4 {[%clk 0:03:02]}  cxd4 {[%clk 0:02:49]} 6. exd4 {[%clk 0:03:03]}  d5 {[%clk 0:02:45]} 7. cxd5 {[%clk 0:03:04]}  Nxd5 {[%clk 0:02:46]} 8. Qb3 {[%clk 0:03:04]}  Nxc3 {[%clk 0:02:39]} 9. Bc4 {[%clk 0:03:04]}  Nd5 {[%clk 0:02:37]} 10. Bxd5 {[%clk 0:03:04]}  e6 {[%clk 0:02:38]} 11. Bxc6+ {[%clk 0:03:04]}  bxc6 {[%clk 0:02:35]} 12. O-O {[%clk 0:03:04]}  Bg7 {[%clk 0:02:27]} 13. Qa3 {[%clk 0:02:54]}  Qe7 {[%clk 0:02:23]} 14. Qxe7+ {[%clk 0:02:45]}  Kxe7 {[%clk 0:02:24]} 15. Bg5+ {[%clk 0:02:45]}  f6 {[%clk 0:02:21]} 16. Be3 {[%clk 0:02:46]}  g5 {[%clk 0:02:20]} 17. Rfc1 {[%clk 0:02:45]}  Bd7 {[%clk 0:02:19]} 18. Nd2 {[%clk 0:02:42]}  h6 {[%clk 0:02:10]} 19. Nc4 {[%clk 0:02:39]}  f5 {[%clk 0:02:03]} 20. f3 {[%clk 0:02:31]}  Rhb8 {[%clk 0:02:00]} 21. b3 {[%clk 0:02:29]}  c5 {[%clk 0:01:52]} 22. dxc5 {[%clk 0:02:13]}  Bxa1 {[%clk 0:01:43]} 23. Rxa1 {[%clk 0:02:14]}  Bb5 {[%clk 0:01:43]} 24. Nd6 {[%clk 0:01:57]}  Bc6 {[%clk 0:01:42]} 25. Re1 {[%clk 0:01:54]}  Bd5 {[%clk 0:01:39]} 26. Bd4 {[%clk 0:01:42]}  Kd7 {[%clk 0:01:40]} 27. Nf7 {[%clk 0:01:38]}  a5 {[%clk 0:01:38]} 28. Nxh6 {[%clk 0:01:24]}  a4 {[%clk 0:01:38]} 29. Nf7 {[%clk 0:01:23]}  axb3 {[%clk 0:01:33]} 30. axb3 {[%clk 0:01:24]}  Rxb3 {[%clk 0:01:33]} 31. Nxg5 {[%clk 0:01:24]}  Ra2 {[%clk 0:01:28]} 32. h4 {[%clk 0:01:17]}  Rd3 {[%clk 0:01:25]} 33. Be3 {[%clk 0:01:08]}  Ke7 {[%clk 0:01:10]} 34. Nh3 {[%clk 0:01:06]}  Kf7 {[%clk 0:01:08]} 35. h5 {[%clk 0:01:00]}  Rc3 {[%clk 0:01:03]} 36. h6 {[%clk 0:00:55]}  Kg6 {[%clk 0:01:00]} 37. Nf4+ {[%clk 0:00:48]}  Kh7 {[%clk 0:01:00]} 38. Nxd5 {[%clk 0:00:30]}  exd5 {[%clk 0:01:01]} 39. Bf4 {[%clk 0:00:29]}  Ra7 {[%clk 0:00:44]} 40. Re8 {[%clk 0:00:16]}  Rxc5 {[%clk 0:00:39]} 41. Be3 {[%clk 0:00:16]}  Ra1+ {[%clk 0:00:31]} 42. Kh2 {[%clk 0:00:16]}  Rc7 {[%clk 0:00:32]} 43. Bd4 {[%clk 0:00:14]}  Ra6 {[%clk 0:00:22]} 44. Rh8+ {[%clk 0:00:12]}  Kg6 {[%clk 0:00:22]} 45. Be5 {[%clk 0:00:09]}  Re7 {[%clk 0:00:21]} 46. f4 {[%clk 0:00:06]}  Rxe5 {[%clk 0:00:20]} 47. fxe5 {[%clk 0:00:07]}  d4 {[%clk 0:00:19]} 48. Kg3 {[%clk 0:00:06]}  d3 {[%clk 0:00:19]} 49. Rd8 {[%clk 0:00:05]}  Kxh6 {[%clk 0:00:19]} 50. Rxd3 {[%clk 0:00:05]}  Kg5 {[%clk 0:00:19]} 51. Kf3 {[%clk 0:00:05]}  Re6 {[%clk 0:00:18]} 52. Rd5 {[%clk 0:00:04]}  Kg6 {[%clk 0:00:18]} 53. Kf4 {[%clk 0:00:04]}  Re7 {[%clk 0:00:18]} 54. Rd6+ {[%clk 0:00:04]}  Kg7 {[%clk 0:00:18]} 55. Kxf5 {[%clk 0:00:05]}  Rf7+ {[%clk 0:00:19]} 56. Rf6 {[%clk 0:00:05]}  Ra7 {[%clk 0:00:18]} 57. g4 {[%clk 0:00:06]}  Ra2 {[%clk 0:00:19]} 58. Rg6+ {[%clk 0:00:06]}  Kf7 {[%clk 0:00:19]} 59. Rb6 {[%clk 0:00:07]}  Ke7 {[%clk 0:00:20]} 60. Rb7+ {[%clk 0:00:07]}  Kd8 {[%clk 0:00:20]} 61. g5 {[%clk 0:00:07]}  Rg2 {[%clk 0:00:20]} 62. g6 {[%clk 0:00:07]}  Kc8 {[%clk 0:00:20]} 63. Rf7 {[%clk 0:00:06]}  Rf2+ {[%clk 0:00:21]} 64. Ke6 {[%clk 0:00:06]}  Rg2 {[%clk 0:00:21]} 65. g7 {[%clk 0:00:07]}  Kd8 {[%clk 0:00:20]} 66. Rf8+ {[%clk 0:00:07]} 1-0


[Site "https://www.chess.com"]

[Event "Titled Tuesday Blitz May 11 2021"]
[White "Kobalia, Mikhail"]
[Black "Stearman, Josiah"]
[WhiteFideId "4119150"]
[BlackFideId "2062496"]
[WhiteElo "2569"]
[BlackElo "2384"]
[Result "1/2-1/2"]
[Round "03"]
[TimeControl "180+1"]
[Date "2021.05.11"]
[WhiteClock "0:00:13"]
[BlackClock "0:00:40"]

1. e4 {[%clk 0:03:00]}  c5 {[%clk 0:02:59]} 2. Nf3 {[%clk 0:03:00]}  Nc6 {[%clk 0:03:00]} 3. Bb5 {[%clk 0:02:59]}  Na5 {[%clk 0:02:59]} 4. d3 {[%clk 0:02:50]}  a6 {[%clk 0:02:56]} 5. Bc4 {[%clk 0:02:50]}  e6 {[%clk 0:02:51]} 6. Nc3 {[%clk 0:02:49]}  Nf6 {[%clk 0:02:44]} 7. O-O {[%clk 0:02:47]}  Be7 {[%clk 0:02:39]} 8. a4 {[%clk 0:02:46]}  O-O {[%clk 0:02:38]} 9. e5 {[%clk 0:02:44]}  Ne8 {[%clk 0:02:34]} 10. Bf4 {[%clk 0:02:42]}  d5 {[%clk 0:02:32]} 11. exd6 {[%clk 0:02:41]}  Bxd6 {[%clk 0:02:33]} 12. Qc1 {[%clk 0:02:39]}  Nxc4 {[%clk 0:02:29]} 13. dxc4 {[%clk 0:02:38]}  Qc7 {[%clk 0:02:30]} 14. Bg3 {[%clk 0:02:33]}  b6 {[%clk 0:02:28]} 15. a5 {[%clk 0:02:26]}  Bb7 {[%clk 0:02:23]} 16. axb6 {[%clk 0:02:24]}  Qxb6 {[%clk 0:02:24]} 17. Ne5 {[%clk 0:02:20]}  Nf6 {[%clk 0:02:19]} 18. Rd1 {[%clk 0:02:16]}  Rad8 {[%clk 0:02:17]} 19. Qe3 {[%clk 0:01:55]}  Bxe5 {[%clk 0:02:00]} 20. Qxe5 {[%clk 0:01:48]}  Qxb2 {[%clk 0:01:54]} 21. Rdb1 {[%clk 0:01:46]}  Qxc2 {[%clk 0:01:34]} 22. Rxb7 {[%clk 0:01:44]}  Rd3 {[%clk 0:01:30]} 23. Rb8 {[%clk 0:00:49]}  Qxc3 {[%clk 0:01:15]} 24. Rxf8+ {[%clk 0:00:47]}  Kxf8 {[%clk 0:01:16]} 25. Qxc5+ {[%clk 0:00:46]}  Ke8 {[%clk 0:01:10]} 26. Rb1 {[%clk 0:00:43]}  Qb3 {[%clk 0:01:01]} 27. Qc8+ {[%clk 0:00:26]}  Ke7 {[%clk 0:00:59]} 28. Qc5+ {[%clk 0:00:23]}  Ke8 {[%clk 0:00:52]} 29. Qc8+ {[%clk 0:00:14]}  Ke7 {[%clk 0:00:50]} 30. Qc5+ {[%clk 0:00:13]}  Ke8 {[%clk 0:00:40]} 1/2-1/2


[Site "https://www.chess.com"]

[Event "Titled Tuesday Blitz May 11 2021"]
[White "Kovalev, Vladislav"]
[Black "Ohanyan, Emin"]
[WhiteFideId "13504398"]
[BlackFideId "13312022"]
[WhiteElo "2573"]
[BlackElo "1648"]
[Result "1-0"]
[Round "03"]
[TimeControl "180+1"]
[Date "2021.05.11"]
[WhiteClock "0:00:17"]
[BlackClock "0:00:03"]

1. e4 {[%clk 0:03:00]}  e5 {[%clk 0:02:59]} 2. Nf3 {[%clk 0:03:01]}  Nc6 {[%clk 0:02:59]} 3. Bb5 {[%clk 0:02:58]}  a6 {[%clk 0:02:54]} 4. Ba4 {[%clk 0:02:58]}  d6 {[%clk 0:02:53]} 5. O-O {[%clk 0:02:56]}  Bd7 {[%clk 0:02:41]} 6. d4 {[%clk 0:02:56]}  b5 {[%clk 0:01:34]} 7. Bb3 {[%clk 0:02:54]}  Nxd4 {[%clk 0:01:34]} 8. Nxd4 {[%clk 0:02:54]}  exd4 {[%clk 0:01:35]} 9. c3 {[%clk 0:02:55]}  dxc3 {[%clk 0:01:35]} 10. Qh5 {[%clk 0:02:56]}  g6 {[%clk 0:01:31]} 11. Qd5 {[%clk 0:02:56]}  Be6 {[%clk 0:01:31]} 12. Qc6+ {[%clk 0:02:57]}  Bd7 {[%clk 0:01:31]} 13. Qxc3 {[%clk 0:02:58]}  Nf6 {[%clk 0:01:22]} 14. e5 {[%clk 0:02:47]}  dxe5 {[%clk 0:01:04]} 15. Qxe5+ {[%clk 0:02:48]}  Qe7 {[%clk 0:01:00]} 16. Qxc7 {[%clk 0:02:29]}  Bg7 {[%clk 0:00:54]} 17. Bf4 {[%clk 0:02:23]}  Rc8 {[%clk 0:00:27]} 18. Qb6 {[%clk 0:02:23]}  Rc6 {[%clk 0:00:19]} 19. Qb8+ {[%clk 0:02:23]}  Rc8 {[%clk 0:00:19]} 20. Qb7 {[%clk 0:02:05]}  O-O {[%clk 0:00:19]} 21. Nc3 {[%clk 0:02:05]}  Qb4 {[%clk 0:00:15]} 22. Be5 {[%clk 0:02:02]}  Bc6 {[%clk 0:00:15]} 23. Qxa6 {[%clk 0:01:51]}  Nh5 {[%clk 0:00:05]} 24. Bxg7 {[%clk 0:01:42]}  Kxg7 {[%clk 0:00:05]} 25. Nd5 {[%clk 0:01:23]}  Qg4 {[%clk 0:00:02]} 26. Ne3 {[%clk 0:01:23]}  Qg5 {[%clk 0:00:01]} 27. Rac1 {[%clk 0:01:15]}  Nf4 {[%clk 0:00:02]} 28. Rxc6 {[%clk 0:01:12]}  Nh3+ {[%clk 0:00:01]} 29. Kh1 {[%clk 0:01:13]}  Nxf2+ {[%clk 0:00:01]} 30. Rxf2 {[%clk 0:01:10]}  Qxe3 {[%clk 0:00:02]} 31. Rf1 {[%clk 0:01:01]}  Qe2 {[%clk 0:00:03]} 32. Rcf6 {[%clk 0:00:53]}  Qxb2 {[%clk 0:00:01]} 33. h3 {[%clk 0:00:23]}  Rc1 {[%clk 0:00:01]} 34. Qxb5 {[%clk 0:00:18]}  Rxf1+ {[%clk 0:00:01]} 35. Rxf1 {[%clk 0:00:19]}  Qd4 {[%clk 0:00:01]} 36. Qd5 {[%clk 0:00:18]}  Qb2 {[%clk 0:00:01]} 37. Rxf7+ {[%clk 0:00:18]}  Rxf7 {[%clk 0:00:01]} 38. Qxf7+ {[%clk 0:00:19]}  Kh6 {[%clk 0:00:02]} 39. Qf8+ {[%clk 0:00:18]}  Kh5 {[%clk 0:00:02]} 40. Qf3+ {[%clk 0:00:18]}  Kh6 {[%clk 0:00:02]} 41. Kh2 {[%clk 0:00:19]}  Qe5+ {[%clk 0:00:02]} 42. Qg3 {[%clk 0:00:20]}  Qa1 {[%clk 0:00:03]} 43. h4 {[%clk 0:00:20]}  Kg7 {[%clk 0:00:03]} 44. Qf4 {[%clk 0:00:20]}  Qc3 {[%clk 0:00:02]} 45. Bc4 {[%clk 0:00:20]}  Qa5 {[%clk 0:00:02]} 46. Qf7+ {[%clk 0:00:19]}  Kh6 {[%clk 0:00:02]} 47. Qf4+ {[%clk 0:00:16]}  Kg7 {[%clk 0:00:03]} 48. Be6 {[%clk 0:00:16]}  Qa3 {[%clk 0:00:02]} 49. Qf7+ {[%clk 0:00:10]}  Kh6 {[%clk 0:00:02]} 50. Qf4+ {[%clk 0:00:10]}  Kg7 {[%clk 0:00:03]} 51. Bh3 {[%clk 0:00:10]}  Qxa2 {[%clk 0:00:02]} 52. Qe5+ {[%clk 0:00:11]}  Kh6 {[%clk 0:00:01]} 53. Qg5+ {[%clk 0:00:11]}  Kg7 {[%clk 0:00:02]} 54. Qe7+ {[%clk 0:00:12]}  Kh6 {[%clk 0:00:01]} 55. Qe3+ {[%clk 0:00:13]}  Kg7 {[%clk 0:00:01]} 56. Qg3 {[%clk 0:00:14]}  Qa1 {[%clk 0:00:01]} 57. Bg4 {[%clk 0:00:14]}  Qf6 {[%clk 0:00:01]} 58. Bf3 {[%clk 0:00:15]}  Qc3 {[%clk 0:00:01]} 59. Qf4 {[%clk 0:00:15]}  Qa1 {[%clk 0:00:02]} 60. Bd5 {[%clk 0:00:16]}  Qb2 {[%clk 0:00:01]} 61. Qf7+ {[%clk 0:00:16]}  Kh6 {[%clk 0:00:02]} 62. Qf8+ {[%clk 0:00:16]}  Kh5 {[%clk 0:00:02]} 63. Bf3+ {[%clk 0:00:16]}  Kxh4 {[%clk 0:00:03]} 64. Qh6# {[%clk 0:00:17]} 1-0


[Site "https://www.chess.com"]

[Event "Titled Tuesday Blitz May 11 2021"]
[White "Lobanov, Sergei"]
[Black "Erdogdu, Mert"]
[WhiteFideId "24183750"]
[BlackFideId "6301495"]
[WhiteElo "2392"]
[BlackElo "2485"]
[Result "1-0"]
[Round "03"]
[TimeControl "180+1"]
[Date "2021.05.11"]
[WhiteClock "0:00:06"]
[BlackClock "0:00:05"]

1. e4 {[%clk 0:03:00]}  c5 {[%clk 0:03:00]} 2. Nf3 {[%clk 0:03:00]}  d6 {[%clk 0:03:00]} 3. d4 {[%clk 0:03:01]}  cxd4 {[%clk 0:03:01]} 4. Nxd4 {[%clk 0:03:01]}  Nf6 {[%clk 0:03:02]} 5. Nc3 {[%clk 0:03:02]}  a6 {[%clk 0:03:02]} 6. Bg5 {[%clk 0:03:02]}  e6 {[%clk 0:03:03]} 7. f4 {[%clk 0:03:01]}  Qb6 {[%clk 0:03:03]} 8. Qd3 {[%clk 0:02:58]}  Nc6 {[%clk 0:03:02]} 9. O-O-O {[%clk 0:02:57]}  Qxd4 {[%clk 0:03:02]} 10. Qxd4 {[%clk 0:02:58]}  Nxd4 {[%clk 0:03:02]} 11. Rxd4 {[%clk 0:02:59]}  Be7 {[%clk 0:03:03]} 12. Be2 {[%clk 0:02:42]}  Bd7 {[%clk 0:03:03]} 13. e5 {[%clk 0:02:27]}  dxe5 {[%clk 0:03:02]} 14. fxe5 {[%clk 0:02:28]}  Nd5 {[%clk 0:03:01]} 15. Ne4 {[%clk 0:02:04]}  Bxg5+ {[%clk 0:02:54]} 16. Nxg5 {[%clk 0:02:05]}  Bc6 {[%clk 0:02:53]} 17. Bf3 {[%clk 0:02:03]}  Ke7 {[%clk 0:02:37]} 18. Rhd1 {[%clk 0:02:00]}  h6 {[%clk 0:02:34]} 19. Ne4 {[%clk 0:01:57]}  Rhd8 {[%clk 0:02:20]} 20. Nd6 {[%clk 0:01:50]}  f6 {[%clk 0:02:10]} 21. Nc4 {[%clk 0:01:50]}  f5 {[%clk 0:02:02]} 22. Na5 {[%clk 0:01:38]}  Rac8 {[%clk 0:01:53]} 23. a3 {[%clk 0:01:33]}  g5 {[%clk 0:01:50]} 24. c4 {[%clk 0:01:01]}  g4 {[%clk 0:01:39]} 25. Nxc6+ {[%clk 0:00:37]}  bxc6 {[%clk 0:01:39]} 26. Bxg4 {[%clk 0:00:30]}  fxg4 {[%clk 0:01:35]} 27. cxd5 {[%clk 0:00:30]}  cxd5+ {[%clk 0:01:34]} 28. Kb1 {[%clk 0:00:29]}  h5 {[%clk 0:01:35]} 29. h3 {[%clk 0:00:24]}  Rg8 {[%clk 0:01:09]} 30. hxg4 {[%clk 0:00:21]}  hxg4 {[%clk 0:01:08]} 31. Rh1 {[%clk 0:00:18]}  Rg7 {[%clk 0:01:01]} 32. Rh6 {[%clk 0:00:18]}  Rc4 {[%clk 0:00:56]} 33. Rxc4 {[%clk 0:00:17]}  dxc4 {[%clk 0:00:57]} 34. Kc2 {[%clk 0:00:17]}  Rg5 {[%clk 0:00:57]} 35. Rh7+ {[%clk 0:00:17]}  Kd8 {[%clk 0:00:57]} 36. Rh4 {[%clk 0:00:17]}  Kd7 {[%clk 0:00:54]} 37. Kc3 {[%clk 0:00:18]}  Kc6 {[%clk 0:00:53]} 38. Kxc4 {[%clk 0:00:18]}  Rxe5 {[%clk 0:00:54]} 39. Rxg4 {[%clk 0:00:18]}  Re2 {[%clk 0:00:54]} 40. Kc3 {[%clk 0:00:16]}  Kd5 {[%clk 0:00:51]} 41. Rd4+ {[%clk 0:00:13]}  Ke5 {[%clk 0:00:51]} 42. Ra4 {[%clk 0:00:06]}  Rxg2 {[%clk 0:00:49]} 43. Rxa6 {[%clk 0:00:06]}  Kd5 {[%clk 0:00:48]} 44. Ra5+ {[%clk 0:00:06]}  Ke4 {[%clk 0:00:48]} 45. b4 {[%clk 0:00:06]}  e5 {[%clk 0:00:48]} 46. b5 {[%clk 0:00:06]}  Kd5 {[%clk 0:00:48]} 47. Ra6 {[%clk 0:00:06]}  Rg3+ {[%clk 0:00:44]} 48. Kb4 {[%clk 0:00:06]}  e4 {[%clk 0:00:45]} 49. Ra8 {[%clk 0:00:05]}  e3 {[%clk 0:00:42]} 50. Rd8+ {[%clk 0:00:05]}  Ke4 {[%clk 0:00:38]} 51. Re8+ {[%clk 0:00:06]}  Kd3 {[%clk 0:00:38]} 52. a4 {[%clk 0:00:05]}  Rg4+ {[%clk 0:00:35]} 53. Kc5 {[%clk 0:00:05]}  Re4 {[%clk 0:00:35]} 54. Rd8+ {[%clk 0:00:05]}  Kc2 {[%clk 0:00:35]} 55. Rh8 {[%clk 0:00:05]}  e2 {[%clk 0:00:35]} 56. Rh1 {[%clk 0:00:06]}  e1=Q {[%clk 0:00:34]} 57. Rxe1 {[%clk 0:00:06]}  Rxe1 {[%clk 0:00:35]} 58. b6 {[%clk 0:00:07]}  Re5+ {[%clk 0:00:14]} 59. Kd6 {[%clk 0:00:07]}  Ra5 {[%clk 0:00:10]} 60. b7 {[%clk 0:00:07]}  Rxa4 {[%clk 0:00:11]} 61. b8=Q {[%clk 0:00:07]}  Rc4 {[%clk 0:00:11]} 62. Kd5 {[%clk 0:00:07]}  Rc3 {[%clk 0:00:10]} 63. Qh2+ {[%clk 0:00:07]}  Kb3 {[%clk 0:00:11]} 64. Qd2 {[%clk 0:00:06]}  Rc4 {[%clk 0:00:08]} 65. Qd3+ {[%clk 0:00:06]}  Rc3 {[%clk 0:00:09]} 66. Qb5+ {[%clk 0:00:06]}  Kc2 {[%clk 0:00:10]} 67. Kd4 {[%clk 0:00:07]}  Rb3 {[%clk 0:00:09]} 68. Qe2+ {[%clk 0:00:07]}  Kb1 {[%clk 0:00:09]} 69. Kc4 {[%clk 0:00:07]}  Ra3 {[%clk 0:00:09]} 70. Kb4 {[%clk 0:00:07]}  Ra2 {[%clk 0:00:05]} 71. Qd1+ {[%clk 0:00:07]}  Kb2 {[%clk 0:00:06]} 72. Qd4+ {[%clk 0:00:06]}  Kb1 {[%clk 0:00:06]} 73. Kb3 {[%clk 0:00:05]}  Rc2 {[%clk 0:00:03]} 74. Qd1+ {[%clk 0:00:04]}  Rc1 {[%clk 0:00:03]} 75. Qd3+ {[%clk 0:00:05]}  Ka1 {[%clk 0:00:04]} 76. Qa6+ {[%clk 0:00:05]}  Kb1 {[%clk 0:00:05]} 77. Qa2# {[%clk 0:00:06]} 1-0


[Site "https://www.chess.com"]

[Event "Titled Tuesday Blitz May 11 2021"]
[White "Matlakov, Maxim"]
[Black "Chasin, Nico"]
[WhiteFideId "4168003"]
[BlackFideId "30908477"]
[WhiteElo "2760"]
[BlackElo "2135"]
[Result "1-0"]
[Round "03"]
[TimeControl "180+1"]
[Date "2021.05.11"]
[WhiteClock "0:01:04"]
[BlackClock "0:00:01"]

1. c4 {[%clk 0:03:00]}  e5 {[%clk 0:02:57]} 2. Nc3 {[%clk 0:03:00]}  Nf6 {[%clk 0:02:57]} 3. Nf3 {[%clk 0:02:59]}  Nc6 {[%clk 0:02:57]} 4. d3 {[%clk 0:03:00]}  d5 {[%clk 0:02:57]} 5. cxd5 {[%clk 0:02:59]}  Nxd5 {[%clk 0:02:57]} 6. e3 {[%clk 0:02:58]}  Be6 {[%clk 0:02:55]} 7. Be2 {[%clk 0:02:57]}  Qd7 {[%clk 0:02:48]} 8. Ng5 {[%clk 0:02:52]}  Bb4 {[%clk 0:02:31]} 9. Nxe6 {[%clk 0:02:40]}  Nxc3 {[%clk 0:02:22]} 10. Nxg7+ {[%clk 0:02:39]}  Kf8 {[%clk 0:02:21]} 11. bxc3 {[%clk 0:02:38]}  Bxc3+ {[%clk 0:02:20]} 12. Bd2 {[%clk 0:02:39]}  Bxa1 {[%clk 0:02:19]} 13. Nh5 {[%clk 0:02:32]}  Qd5 {[%clk 0:01:59]} 14. Qxa1 {[%clk 0:02:11]}  Qxg2 {[%clk 0:01:58]} 15. Rf1 {[%clk 0:02:10]}  Qxh2 {[%clk 0:01:52]} 16. Qb2 {[%clk 0:02:10]}  Rb8 {[%clk 0:01:33]} 17. Qa3+ {[%clk 0:02:07]}  Ke8 {[%clk 0:01:31]} 18. Nf6+ {[%clk 0:01:54]}  Kd8 {[%clk 0:01:29]} 19. Qc5 {[%clk 0:01:54]}  Qg2 {[%clk 0:01:21]} 20. Bc3 {[%clk 0:01:43]}  Qg5 {[%clk 0:00:55]} 21. Qd5+ {[%clk 0:01:29]}  Ke7 {[%clk 0:00:46]} 22. Ne4 {[%clk 0:01:29]}  Qg6 {[%clk 0:00:11]} 23. f4 {[%clk 0:01:19]}  Rhd8 {[%clk 0:00:07]} 24. Qc5+ {[%clk 0:01:19]}  Ke8 {[%clk 0:00:06]} 25. fxe5 {[%clk 0:01:18]}  Ne7 {[%clk 0:00:03]} 26. Nf6+ {[%clk 0:01:06]}  Kf8 {[%clk 0:00:03]} 27. e6 {[%clk 0:01:07]}  Qg3+ {[%clk 0:00:03]} 28. Kd2 {[%clk 0:01:07]}  Qd6 {[%clk 0:00:03]} 29. Qg5 {[%clk 0:01:04]}  Qxe6 {[%clk 0:00:01]} 30. Qh6# {[%clk 0:01:04]} 1-0


[Site "https://www.chess.com"]

[Event "Titled Tuesday Blitz May 11 2021"]
[White "Mitrabha, Guha"]
[Black "Suvorov, Luca"]
[WhiteFideId "5057000"]
[BlackFideId "12977071"]
[WhiteElo "2334"]
[BlackElo "2127"]
[Result "0-1"]
[Round "03"]
[TimeControl "180+1"]
[Date "2021.05.11"]
[WhiteClock "0:00:30"]
[BlackClock "0:00:08"]

1. d4 {[%clk 0:03:00]}  Nf6 {[%clk 0:02:59]} 2. Nf3 {[%clk 0:02:59]}  e6 {[%clk 0:02:58]} 3. Bf4 {[%clk 0:02:59]}  b6 {[%clk 0:02:57]} 4. e3 {[%clk 0:02:59]}  Bb7 {[%clk 0:02:57]} 5. Nbd2 {[%clk 0:03:00]}  d6 {[%clk 0:02:58]} 6. Bd3 {[%clk 0:02:59]}  Nbd7 {[%clk 0:02:58]} 7. c3 {[%clk 0:02:58]}  Qe7 {[%clk 0:02:59]} 8. Qe2 {[%clk 0:02:57]}  e5 {[%clk 0:02:57]} 9. dxe5 {[%clk 0:02:30]}  dxe5 {[%clk 0:02:58]} 10. Bg5 {[%clk 0:02:25]}  e4 {[%clk 0:02:58]} 11. Nxe4 {[%clk 0:02:25]}  Bxe4 {[%clk 0:02:55]} 12. O-O-O {[%clk 0:02:26]}  Bxd3 {[%clk 0:02:13]} 13. Qxd3 {[%clk 0:02:27]}  Qe4 {[%clk 0:01:58]} 14. Qe2 {[%clk 0:02:07]}  Bd6 {[%clk 0:01:56]} 15. Rd4 {[%clk 0:02:06]}  Qe6 {[%clk 0:01:56]} 16. Rh4 {[%clk 0:01:48]}  Qxa2 {[%clk 0:01:16]} 17. Rd1 {[%clk 0:01:44]}  Nc5 {[%clk 0:01:09]} 18. Nd4 {[%clk 0:01:33]}  Qa1+ {[%clk 0:01:00]} 19. Kc2 {[%clk 0:01:32]}  Qa4+ {[%clk 0:01:00]} 20. Kb1 {[%clk 0:01:31]}  Nfe4 {[%clk 0:00:46]} 21. Qf3 {[%clk 0:01:24]}  Nxg5 {[%clk 0:00:14]} 22. Qxa8+ {[%clk 0:01:20]}  Kd7 {[%clk 0:00:15]} 23. b3 {[%clk 0:01:02]}  Nxb3 {[%clk 0:00:07]} 24. Nc2 {[%clk 0:00:54]}  Qxh4 {[%clk 0:00:04]} 25. Qxh8 {[%clk 0:00:54]}  Nc5 {[%clk 0:00:03]} 26. Qxg7 {[%clk 0:00:51]}  Nge4 {[%clk 0:00:03]} 27. Qd4 {[%clk 0:00:50]}  Qxf2 {[%clk 0:00:02]} 28. Nb4 {[%clk 0:00:47]}  a5 {[%clk 0:00:01]} 29. Nd5 {[%clk 0:00:46]}  Kc8 {[%clk 0:00:02]} 30. Nf4 {[%clk 0:00:31]}  Kb7 {[%clk 0:00:02]} 31. Qd5+ {[%clk 0:00:31]}  Kb8 {[%clk 0:00:02]} 32. Qd4 {[%clk 0:00:28]}  Bxf4 {[%clk 0:00:02]} 33. exf4 {[%clk 0:00:28]}  Qe2 {[%clk 0:00:02]} 34. g4 {[%clk 0:00:24]}  Kb7 {[%clk 0:00:02]} 35. h4 {[%clk 0:00:24]}  Nxc3+ {[%clk 0:00:02]} 36. Qxc3 {[%clk 0:00:23]}  Qxd1+ {[%clk 0:00:03]} 37. Kb2 {[%clk 0:00:24]}  Qe2+ {[%clk 0:00:03]} 38. Kb1 {[%clk 0:00:24]}  a4 {[%clk 0:00:04]} 39. Qd4 {[%clk 0:00:23]}  Qe4+ {[%clk 0:00:04]} 40. Qxe4+ {[%clk 0:00:23]}  Nxe4 {[%clk 0:00:05]} 41. Kc2 {[%clk 0:00:24]}  c5 {[%clk 0:00:05]} 42. Kd3 {[%clk 0:00:25]}  Nf6 {[%clk 0:00:05]} 43. g5 {[%clk 0:00:25]}  Nh5 {[%clk 0:00:06]} 44. f5 {[%clk 0:00:25]}  a3 {[%clk 0:00:06]} 45. Kc3 {[%clk 0:00:25]}  b5 {[%clk 0:00:06]} 46. Kb3 {[%clk 0:00:26]}  b4 {[%clk 0:00:07]} 47. Ka2 {[%clk 0:00:27]}  c4 {[%clk 0:00:07]} 48. Kb1 {[%clk 0:00:27]}  b3 {[%clk 0:00:07]} 49. Kc1 {[%clk 0:00:27]}  c3 {[%clk 0:00:06]} 50. Kd1 {[%clk 0:00:27]}  a2 {[%clk 0:00:06]} 51. Ke2 {[%clk 0:00:27]}  a1=Q {[%clk 0:00:06]} 52. Kf3 {[%clk 0:00:28]}  Qf1+ {[%clk 0:00:06]} 53. Kg4 {[%clk 0:00:29]}  Qe2+ {[%clk 0:00:07]} 54. Kh3 {[%clk 0:00:29]}  Qf3+ {[%clk 0:00:07]} 55. Kh2 {[%clk 0:00:30]}  Qxf5 {[%clk 0:00:08]} 0-1


[Site "https://www.chess.com"]

[Event "Titled Tuesday Blitz May 11 2021"]
[White "Mohammad Fahad, Rahman"]
[Black "Sarana, Alexey"]
[WhiteFideId "10207791"]
[BlackFideId "24133795"]
[WhiteElo "2323"]
[BlackElo "2629"]
[Result "0-1"]
[Round "03"]
[TimeControl "180+1"]
[Date "2021.05.11"]
[WhiteClock "0:00:05"]
[BlackClock "0:00:37"]

1. e4 {[%clk 0:03:00]}  c5 {[%clk 0:02:51]} 2. Nf3 {[%clk 0:02:58]}  d6 {[%clk 0:02:52]} 3. d4 {[%clk 0:02:59]}  cxd4 {[%clk 0:02:53]} 4. Nxd4 {[%clk 0:02:59]}  Nf6 {[%clk 0:02:53]} 5. Nc3 {[%clk 0:02:59]}  a6 {[%clk 0:02:53]} 6. Be3 {[%clk 0:02:59]}  e5 {[%clk 0:02:53]} 7. Nb3 {[%clk 0:02:59]}  Be6 {[%clk 0:02:53]} 8. f3 {[%clk 0:03:00]}  Nbd7 {[%clk 0:02:54]} 9. Qd2 {[%clk 0:03:00]}  b5 {[%clk 0:02:54]} 10. g4 {[%clk 0:02:56]}  Be7 {[%clk 0:02:43]} 11. O-O-O {[%clk 0:02:51]}  b4 {[%clk 0:02:43]} 12. Nd5 {[%clk 0:02:51]}  Bxd5 {[%clk 0:02:43]} 13. exd5 {[%clk 0:02:51]}  Nb6 {[%clk 0:02:44]} 14. Bxb6 {[%clk 0:01:54]}  Qxb6 {[%clk 0:02:45]} 15. Kb1 {[%clk 0:01:54]}  a5 {[%clk 0:02:37]} 16. g5 {[%clk 0:01:47]}  Nh5 {[%clk 0:02:36]} 17. Bd3 {[%clk 0:01:31]}  Nf4 {[%clk 0:02:30]} 18. Be4 {[%clk 0:01:30]}  O-O {[%clk 0:02:27]} 19. h4 {[%clk 0:01:28]}  Rfc8 {[%clk 0:02:11]} 20. Nc1 {[%clk 0:01:22]}  a4 {[%clk 0:02:01]} 21. Ne2 {[%clk 0:01:19]}  Nxe2 {[%clk 0:01:44]} 22. Qxe2 {[%clk 0:01:19]}  a3 {[%clk 0:01:44]} 23. b3 {[%clk 0:01:11]}  Qc5 {[%clk 0:01:44]} 24. c4 {[%clk 0:00:58]}  bxc3 {[%clk 0:01:42]} 25. Kc2 {[%clk 0:00:58]}  Rc7 {[%clk 0:01:33]} 26. Rh2 {[%clk 0:00:54]}  Rb8 {[%clk 0:01:32]} 27. Qd3 {[%clk 0:00:53]}  g6 {[%clk 0:01:24]} 28. h5 {[%clk 0:00:44]}  Bxg5 {[%clk 0:01:24]} 29. hxg6 {[%clk 0:00:44]}  fxg6 {[%clk 0:01:23]} 30. Bxg6 {[%clk 0:00:35]}  h6 {[%clk 0:01:22]} 31. Bf5 {[%clk 0:00:19]}  Rg7 {[%clk 0:01:12]} 32. Be6+ {[%clk 0:00:18]}  Kf8 {[%clk 0:01:10]} 33. Rg2 {[%clk 0:00:12]}  Ke7 {[%clk 0:01:10]} 34. Rdg1 {[%clk 0:00:11]}  Rf8 {[%clk 0:01:08]} 35. Bg4 {[%clk 0:00:09]}  Qd4 {[%clk 0:00:53]} 36. Re1 {[%clk 0:00:07]}  Qxd3+ {[%clk 0:00:51]} 37. Kxd3 {[%clk 0:00:08]}  Bd2 {[%clk 0:00:51]} 38. Ree2 {[%clk 0:00:09]}  Rf4 {[%clk 0:00:51]} 39. Rh2 {[%clk 0:00:08]}  Rd4+ {[%clk 0:00:48]} 40. Kc2 {[%clk 0:00:08]}  Kf6 {[%clk 0:00:49]} 41. Rh5 {[%clk 0:00:07]}  Rc7 {[%clk 0:00:45]} 42. Rf5+ {[%clk 0:00:07]}  Kg7 {[%clk 0:00:45]} 43. Rg2 {[%clk 0:00:07]}  Bg5 {[%clk 0:00:44]} 44. Bh5 {[%clk 0:00:07]}  Rd2+ {[%clk 0:00:37]} 45. Rxd2 {[%clk 0:00:05]}  cxd2+ {[%clk 0:00:37]} 0-1


[Site "https://www.chess.com"]